bitfinex-derivatives/quotes_SOLF0:USTF0_20250105
["timestamp","ask_amount","ask_price","bid_price","bid_amount"]
[1736109184497,7.43766,213.2,213.18,2.3459]
[1736109184697,2.66,213.19,213.18,2.3459]
[1736109184897,2.66,213.19,213.14,4.4293]
[1736109185094,7.43766,213.17,213.14,4.4293]
[1736109185791,7.43766,213.17,213.15,2.3463]
[1736109185992,7.43766,213.17,213.14,1.4977]
[1736109186901,7.43766,213.17,213.16,2.3462]
[1736109187102,10.09766,213.19,213.14,1.4977]
[1736109188099,10.09766,213.19,213.18,2.346]
[1736109192998,10.09766,213.19,213.17,2.3461]
[1736109195096,10.09766,213.19,213.09,8.83846]
[1736109195297,7.43766,213.15,213.14,2.3463]
[1736109196499,7.43766,213.15,213.09,1.4008]
[1736109196699,2.64,213.14,213.09,1.4008]
[1736109197096,7.43766,213.13,213.09,1.4008]
[1736109198396,7.43766,213.13,213.11,2.3466]
[1736109201998,7.43766,213.13,213.12,2.3466]
[1736109210616,10.07766,213.13,213.12,2.3466]
[1736109212513,2.64,213.13,213.12,2.3466]
[1736109212714,2.64,213.14,213.09,7.43766]
[1736109212914,2.64,213.15,213.11,7.43766]
[1736109213114,2.64,213.16,213.15,2.3463]
[1736109213306,2.64,213.18,213.13,7.43766]
[1736109214615,2.64,213.18,213.17,2.346]
[1736109215615,2.64,213.2,213.15,7.43766]
[1736109215811,7.43766,213.23,213.15,7.43766]
[1736109216009,60.40194367,213.26,213.17,7.43766]
[1736109216215,2.64,213.25,213.23,2.3454]
[1736109216812,2.64,213.25,213.24,2.3453]
[1736109217111,2.64,213.25,213.1,29.94392988]
[1736109217414,2.64,213.25,213.18,7.43766]
[1736109217717,7.43766,213.24,213.18,7.43766]
[1736109218116,10.07766,213.24,213.18,7.43766]
[1736109218418,10.07766,213.24,213.22,2.3455]
[1736109219218,10.07766,213.24,213.18,7.43766]
[1736109219422,10.07766,213.24,213.23,2.3454]
[1736109222718,10.07766,213.24,213.11,6.47588247]
[1736109222923,7.43766,213.22,213.2,2.3457]
[1736109235233,2.62,213.21,213.2,2.3457]
[1736109236632,2.62,213.21,213.1,1.4004]
[1736109236832,7.43766,213.18,213.1,8.83806]
[1736109237221,7.43766,213.18,213.1,1.4004]
[1736109237425,7.43766,213.18,213.1,8.83806]
[1736109237927,7.43766,213.18,213.16,2.3462]
[1736109239335,2.3458,213.2,213.16,2.3462]
[1736109239643,7.43766,213.18,213.16,2.3462]
[1736109240030,7.43766,213.18,213.12,7.43766]
[1736109240234,7.43766,213.18,213.17,2.3461]
[1736109240831,10.05766,213.18,213.17,2.3461]
[1736109251950,7.43766,213.2,213.19,2.3458]
[1736109252154,10.05766,213.2,213.19,2.3458]
[1736109252750,2.9351,213.25,213.21,2.3456]
[1736109252945,7.43766,213.22,213.21,2.3456]
[1736109254653,10.05766,213.22,213.21,2.3456]
[1736109254855,10.05766,213.22,213.11,6.47588247]
[1736109255054,7.43766,213.2,213.19,2.3459]
[1736109259664,7.43766,213.2,213.18,2.346]
[1736109261259,7.43766,213.2,213.11,6.47588247]
[1736109261559,7.43766,213.16,213.11,6.47588247]
[1736109261759,10.05766,213.16,213.11,6.47588247]
[1736109262265,10.05766,213.16,213.1,8.83806]
[1736109262465,10.05766,213.16,213.15,2.3462]
[1736109263761,10.05766,213.16,213.11,2.3467]
[1736109263962,7.43766,213.14,213.1,1.4004]
[1736109266463,7.43766,213.14,213.13,2.3465]
[1736109270766,7.43766,213.14,213.1,1.4004]
[1736109270967,7.43766,213.12,213.08,116.04176873]
[1736109271169,2.62,213.11,213.08,116.04176873]
[1736109272071,2.62,213.11,213.09,2.3469]
[1736109272268,2.62,213.1,213.09,2.3469]
[1736109274069,10.05766,213.1,213.01,42.98345793]
[1736109274272,2.62,213.1,213.01,42.98345793]
[1736109274470,7.43766,213.07,213.0,4.26921005]
[1736109275468,7.43766,213.07,213.04,2.3475]
[1736109276474,7.43766,213.07,213.05,2.3474]
[1736109283781,2.62,213.06,213.05,2.3474]
[1736109294676,2.62,213.06,212.97,1.5243]
[1736109294880,2.62,213.06,213.03,2.3475]
[1736109294881,7.43766,213.04,213.03,2.3475]
[1736109295082,2.62,213.06,212.97,8.96196]
[1736109295282,7.43766,213.05,212.97,8.96196]
[1736109296187,7.43766,213.05,213.03,2.3476]
[1736109301985,7.43766,213.05,213.04,2.3475]
[1736109302892,2.62,213.06,213.05,2.3474]
[1736109308089,2.62,213.06,212.98,7.43766]
[1736109308283,7.43766,213.05,213.02,2.3476]
[1736109308792,7.43766,213.05,213.03,2.3476]
[1736109309187,7.43766,213.05,212.98,6.47588247]
[1736109309383,2.62,213.06,213.0,2.3479]
[1736109309384,7.43766,213.03,213.0,2.3479]
[1736109310094,2.62,213.06,212.98,6.47588247]
[1736109310291,7.43766,213.03,213.02,2.3477]
[1736109314989,7.43766,213.03,212.97,1.5243]
[1736109315193,7.43766,213.01,212.97,1.5243]
[1736109315393,2.62,213.0,212.97,1.5243]
[1736109315596,2.62,213.0,212.99,2.3481]
[1736109318197,2.62,213.06,212.99,7.43766]
[1736109318494,2.8347,213.17,213.03,7.43766]
[1736109318698,7.43766,213.12,213.05,7.43766]
[1736109318989,2.62,213.11,213.05,7.43766]
[1736109319999,7.43766,213.12,213.05,7.43766]
[1736109320494,2.62,213.11,213.07,7.43766]
[1736109320697,7.43766,213.14,213.07,7.43766]
[1736109320897,2.62,213.13,213.08,1.4583]
[1736109321698,10.05766,213.14,213.12,2.3465]
[1736109322200,2.62,213.14,213.08,1.4583]
[1736109322592,2.62,213.14,213.08,4.3135]
[1736109322795,7.43766,213.16,213.09,7.43766]
[1736109322996,10.05766,213.16,213.09,7.43766]
[1736109323698,2.62,213.16,213.15,2.3463]
[1736109323998,2.62,213.18,213.11,7.43766]
[1736109324397,2.8913,213.25,213.15,7.43766]
[1736109324599,7.43766,213.22,213.15,7.43766]
[1736109324897,7.43766,213.22,213.19,2.3458]
[1736109325299,2.62,213.21,213.15,7.43766]
[1736109327499,2.62,213.21,213.2,2.3458]
[1736109329592,2.62,213.21,213.19,2.3459]
[1736109329793,7.43766,213.2,213.19,2.3459]
[1736109331695,7.43766,213.22,213.13,7.43766]
[1736109331898,2.62,213.21,213.15,7.43766]
[1736109333403,2.62,213.21,213.2,2.3458]
[1736109334101,7.43766,213.22,213.2,2.3458]
[1736109334405,10.05766,213.22,213.17,2.3461]
[1736109334604,10.05766,213.22,213.15,7.43766]
[1736109335103,10.05766,213.22,213.2,2.3457]
[1736109335404,10.05766,213.22,213.15,7.43766]
[1736109335802,10.05766,213.22,213.17,2.3461]
[1736109335999,10.05766,213.22,213.15,7.43766]
[1736109336500,10.05766,213.22,213.17,2.3461]
[1736109336704,10.05766,213.22,213.15,7.43766]
[1736109338406,10.05766,213.22,213.2,2.3458]
[1736109348111,2.8269,213.39,213.16,7.43766]
[1736109348426,10.05766,213.26,213.18,7.43766]
[1736109348620,7.43766,213.26,213.18,7.43766]
[1736109348924,2.62,213.25,213.24,2.3453]
[1736109349523,2.62,213.25,213.13,116.02790577]
[1736109349714,7.43766,213.21,213.15,7.43766]
[1736109350117,7.43766,213.21,213.19,2.3459]
[1736109350722,7.43766,213.21,213.13,116.02790577]
[1736109350723,2.62,213.2,213.13,116.02790577]
[1736109350923,7.43766,213.16,213.13,116.02790577]
[1736109352424,7.43766,213.16,213.14,2.3464]
[1736109356032,7.43766,213.16,213.15,2.3463]
[1736109356222,7.43766,213.16,213.13,116.02790577]
[1736109356418,7.43766,213.14,213.08,4.3135]
[1736109359031,7.43766,213.14,213.12,2.3465]
[1736109363030,7.43766,213.14,213.13,2.3465]
[1736109369036,7.43766,213.14,213.08,4.3135]
[1736109369238,7.43766,213.12,213.11,2.3466]
[1736109373042,7.43766,213.12,213.1,2.3468]
[1736109374639,7.43766,213.12,213.02,1.3877]
[1736109374940,7.43766,213.08,213.02,1.3877]
[1736109375146,7.43766,213.08,213.05,2.3474]
[1736109375147,7.43766,213.06,213.05,2.3474]
[1736109378440,10.05766,213.08,213.06,2.3473]
[1736109386254,10.05766,213.08,213.03,2.3475]
[1736109386255,2.3472,213.07,213.03,2.3475]
[1736109386555,7.43766,213.04,213.03,2.3475]
[1736109388053,7.43766,213.06,212.99,2.8955]
[1736109388251,7.43766,213.06,213.04,2.3475]
[1736109394757,7.43766,213.06,213.03,2.3476]
[1736109394951,7.43766,213.04,212.96,1.5048]
[1736109395155,7.43766,213.04,212.96,8.94246]
[1736109395354,2.62,213.03,212.96,8.94246]
[1736109395745,7.43766,213.02,212.96,8.94246]
[1736109395951,9.78546,213.02,212.96,1.5048]
[1736109396151,7.43766,213.0,212.96,1.5048]
[1736109396556,7.43766,213.0,212.98,2.3482]
[1736109398658,7.43766,213.0,212.96,1.5048]
[1736109398956,7.43766,213.0,212.99,2.3481]
[1736109400053,2.62,213.03,212.96,1.5048]
[1736109400259,2.62,213.03,213.02,2.3477]
[1736109401454,2.3469,213.1,213.05,2.3474]
[1736109401654,2.62,213.09,212.99,7.43766]
[1736109401855,7.43766,213.08,212.99,7.43766]
[1736109402658,2.62,213.09,212.99,7.43766]
[1736109402659,7.43766,213.06,212.99,7.43766]
[1736109402858,7.43766,213.06,213.05,2.3474]
[1736109405158,7.43766,213.06,212.97,7.43766]
[1736109405363,7.43766,213.02,212.96,1.5048]
[1736109406563,7.43766,213.02,213.01,2.3478]
[1736109407459,7.43766,213.02,212.99,2.348]
[1736109407963,7.43766,213.02,212.94,2.8237]
[1736109408166,7.43766,213.02,213.0,2.3479]
[1736109408560,7.43766,213.02,213.01,2.3478]
[1736109413466,2.62,213.03,213.01,2.3478]
[1736109413665,2.62,213.03,213.02,2.3477]
[1736109413857,10.05766,213.03,213.02,2.3477]
[1736109414859,2.62,213.03,213.02,2.3477]
[1736109415067,10.05766,213.03,213.02,2.3477]
[1736109416768,2.62,213.03,213.02,2.3477]
[1736109417068,2.62,213.06,212.99,7.43766]
[1736109417666,7.43766,213.07,213.06,2.3473]
[1736109417860,10.05766,213.07,213.06,2.3473]
[1736109419271,10.05766,213.07,212.98,1.4867]
[1736109419471,7.43766,213.02,212.98,1.4867]
[1736109419763,10.05766,213.02,212.98,1.4867]
[1736109419972,10.05766,213.02,213.01,2.3478]
[1736109422472,10.05766,213.02,212.99,2.348]
[1736109423671,10.05766,213.02,213.0,2.3479]
[1736109423875,10.05766,213.02,212.94,10.26136]
[1736109424477,10.05766,213.02,213.0,2.3479]
[1736109424980,10.05766,213.02,212.94,10.26136]
[1736109426575,10.05766,213.02,213.0,2.3479]
[1736109427186,10.05766,213.02,213.01,2.3478]
[1736109428378,7.43766,213.02,213.01,2.3478]
[1736109428579,10.05766,213.02,213.01,2.3478]
[1736109429982,7.43766,213.06,212.98,7.43766]
[1736109430175,2.62,213.05,212.98,7.43766]
[1736109430579,2.62,213.05,213.04,2.3474]
[1736109435674,2.62,213.05,213.02,2.3476]
[1736109435874,7.43766,213.03,213.02,2.3476]
[1736109437993,7.43766,213.03,213.01,2.3478]
[1736109438191,7.43766,213.02,213.01,2.3478]
[1736109440683,7.43766,213.04,213.02,2.3477]
[1736109441796,2.62,213.05,213.03,2.3476]
[1736109441995,10.05766,213.05,213.03,2.3476]
[1736109450502,10.05766,213.05,213.02,2.3477]
[1736109451203,7.43766,213.05,213.02,2.3477]
[1736109451403,10.05766,213.05,213.02,2.3477]
[1736109455907,10.05766,213.05,213.03,2.3476]
[1736109456501,10.05766,213.05,213.02,2.3477]
[1736109456708,12.40506,213.05,213.02,2.3477]
[1736109457006,10.05766,213.05,213.02,2.3477]
[1736109457207,10.05766,213.05,213.03,2.3476]
[1736109457999,2.62,213.05,212.98,2.3481]
[1736109458203,7.43766,213.04,212.98,7.43766]
[1736109459108,7.43766,213.04,212.99,2.348]
[1736109459308,2.3473,213.07,212.98,7.43766]
[1736109459605,7.43766,213.05,212.98,7.43766]
[1736109459806,2.62,213.06,213.0,7.43766]
[1736109460106,10.05766,213.11,213.04,7.43766]
[1736109460306,7.43766,213.11,213.04,7.43766]
[1736109461907,7.43766,213.11,213.07,2.3471]
[1736109462898,7.43766,213.11,213.08,2.347]
[1736109463510,2.62,213.12,213.09,2.3469]
[1736109463812,2.62,213.12,213.06,7.43766]
[1736109464110,7.43766,213.13,213.06,7.43766]
[1736109464414,7.43766,213.13,213.07,1.4319]
[1736109465407,10.05766,213.15,213.08,7.43766]
[1736109465603,10.05766,213.15,213.08,10.35796]
[1736109466408,7.43766,213.15,213.14,2.3464]
[1736109466810,5.3311,213.2,213.1,7.43766]
[1736109467017,7.43766,213.18,213.1,7.43766]
[1736109467310,10.05766,213.18,213.1,7.43766]
[1736109468315,2.62,213.2,213.12,7.43766]
[1736109468515,10.05766,213.2,213.12,7.43766]
[1736109468813,7.43766,213.2,213.12,7.43766]
[1736109469016,7.43766,213.2,213.17,2.346]
[1736109469912,7.43766,213.2,213.12,7.43766]
[1736109470113,7.43766,213.2,213.18,2.346]
[1736109474616,7.43766,213.2,213.09,2.62]
[1736109474817,2.62,213.21,213.16,2.3461]
[1736109476513,4.9657,213.21,213.16,2.3461]
[1736109478319,2.62,213.21,213.13,7.43766]
[1736109478521,2.62,213.22,213.14,1.3868]
[1736109478817,10.05766,213.22,213.14,1.3868]
[1736109479012,10.05766,213.22,213.16,2.3461]
[1736109479216,10.05766,213.22,213.14,1.3868]
[1736109479415,7.43766,213.2,213.14,1.3868]
[1736109480317,7.43766,213.16,213.14,1.3868]
[1736109480921,7.43766,213.16,213.15,2.3463]
[1736109481715,7.43766,213.18,213.14,1.3868]
[1736109481920,7.43766,213.18,213.16,2.3461]
[1736109482218,7.43766,213.18,213.14,1.3868]
[1736109483425,7.43766,213.18,213.17,2.3461]
[1736109483722,2.62,213.19,213.14,1.3868]
[1736109484225,7.43766,213.18,213.14,1.3868]
[1736109485523,7.43766,213.18,213.16,2.3462]
[1736109486921,7.43766,213.18,213.17,2.3461]
[1736109488825,7.43766,213.18,213.08,5.5403]
[1736109489124,7.43766,213.16,213.08,10.35796]
[1736109490423,7.43766,213.16,213.15,2.3463]
[1736109498730,2.62,213.19,213.12,7.43766]
[1736109498933,10.05766,213.21,213.14,7.43766]
[1736109499137,2.62,213.22,213.14,7.43766]
[1736109499327,2.62,213.22,213.16,7.43766]
[1736109499929,10.05766,213.23,213.21,2.3455]
[1736109500232,10.05766,213.23,213.16,7.43766]
[1736109501133,2.62,213.24,213.16,7.43766]
[1736109501728,2.62,213.24,213.18,7.43766]
[1736109502336,2.62,213.24,213.23,2.3454]
[1736109503231,2.62,213.24,213.21,2.3455]
[1736109503431,7.43766,213.23,213.21,2.3455]
[1736109506139,10.05766,213.25,213.23,2.3453]
[1736109506930,10.05766,213.25,213.24,2.3453]
[1736109507236,7.43766,213.25,213.24,2.3453]
[1736109508134,2.62,213.26,213.18,7.43766]
[1736109508336,7.43766,213.26,213.25,2.3452]
[1736109513742,7.43766,213.26,213.16,2.8324]
[1736109513937,7.43766,213.21,213.16,2.8324]
[1736109515340,7.43766,213.21,213.2,2.3458]
[1736109518039,7.43766,213.21,213.17,2.346]
[1736109518343,7.43766,213.18,213.13,1.4143]
[1736109518532,2.62,213.22,213.13,1.4143]
[1736109518533,7.43766,213.16,213.13,1.4143]
[1736109518736,7.43766,213.16,213.14,2.3463]
[1736109519938,7.43766,213.16,213.15,2.3463]
[1736109521651,2.62,213.17,213.16,2.3462]
[1736109522046,7.43766,213.2,213.12,7.43766]
[1736109523148,7.43766,213.2,213.19,2.3459]
[1736109527153,7.43766,213.2,213.15,2.3463]
[1736109527346,7.43766,213.17,213.15,2.3463]
[1736109528658,2.62,213.16,213.15,2.3463]
[1736109528854,2.62,213.16,213.13,2.3464]
[1736109529055,7.43766,213.15,213.13,2.3464]
[1736109531559,7.43766,213.15,213.14,2.3464]
[1736109532258,2.62,213.16,213.14,2.3464]
[1736109532557,10.05766,213.16,213.14,2.3464]
[1736109532754,2.62,213.16,213.09,7.43766]
[1736109532958,2.62,213.16,213.15,2.3463]
[1736109533561,7.43766,213.2,213.13,7.43766]
[1736109533755,2.62,213.19,213.13,7.43766]
[1736109534562,2.62,213.19,213.18,2.346]
[1736109539267,4.9659,213.19,213.15,2.3462]
[1736109539563,7.43766,213.17,213.15,2.3462]
[1736109539965,7.43766,213.17,213.16,2.3462]
[1736109540561,4.9659,213.19,213.16,2.3462]
[1736109540864,7.43766,213.18,213.16,2.3462]
[1736109543469,7.43766,213.18,213.1,7.43766]
[1736109543669,7.43766,213.18,213.15,2.3463]
[1736109543869,7.43766,213.18,213.1,7.43766]
[1736109545170,7.43766,213.18,213.15,2.3463]
[1736109547469,7.43766,213.18,213.16,2.3462]
[1736109547868,7.43766,213.18,213.09,116.05825611]
[1736109548069,7.43766,213.15,213.14,2.3463]
[1736109552772,7.43766,213.17,213.14,2.3463]
[1736109555975,7.43766,213.15,213.14,2.3463]
[1736109560474,7.43766,213.17,213.15,2.3463]
[1736109561276,60.40289069,213.23,213.12,7.43766]
[1736109561478,2.62,213.22,213.14,7.43766]
[1736109561678,7.43766,213.21,213.14,7.43766]
[1736109562776,7.43766,213.21,213.12,7.43766]
[1736109563183,7.43766,213.19,213.12,7.43766]
[1736109563684,7.43766,213.19,213.18,2.3459]
[1736109564881,10.05766,213.19,213.18,2.3459]
[1736109566487,10.05766,213.19,213.17,2.3461]
[1736109575887,10.05766,213.19,213.12,7.43766]
[1736109576087,10.05766,213.19,213.15,2.3462]
[1736109578091,12.40356,213.19,213.15,2.3462]
[1736109578794,10.05766,213.19,213.12,7.43766]
[1736109578997,9.78376,213.17,213.1,13.94391171]
[1736109580394,9.78376,213.17,213.13,2.3464]
[1736109581692,2.62,213.19,213.1,13.94391171]
[1736109581891,7.43766,213.18,213.15,2.3462]
[1736109582792,2.62,213.17,213.15,2.3462]
[1736109586200,2.62,213.17,213.16,2.3462]
[1736109587002,2.62,213.18,213.16,2.3462]
[1736109587501,2.62,213.18,213.17,2.3461]
[1736109588003,2.62,213.21,213.15,1.4212]
[1736109588598,2.62,213.21,213.16,7.43766]
[1736109588794,7.43766,213.22,213.16,7.43766]
[1736109589007,2.62,213.21,213.16,7.43766]
[1736109589401,2.62,213.21,213.18,2.3459]
[1736109593300,9.78326,213.22,213.18,2.3459]
[1736109593505,2.62,213.21,213.18,2.3459]
[1736109595116,2.62,213.21,213.15,1.4212]
[1736109595812,2.62,213.21,213.18,2.3459]
[1736109603709,2.62,213.21,213.15,1.4212]
[1736109605415,2.62,213.21,213.18,2.3459]
[1736109608417,2.62,213.21,213.15,1.4212]
[1736109608610,2.62,213.21,213.2,2.3458]
[1736109608811,2.62,213.21,213.15,1.4212]
[1736109609021,7.43766,213.18,213.11,6.50625171]
[1736109609517,7.43766,213.18,213.1,13.94391171]
[1736109610116,7.43766,213.16,213.1,6.50625171]
[1736109610316,10.05766,213.16,213.1,6.50625171]
[1736109610515,10.05766,213.16,213.13,2.3465]
[1736109611314,2.62,213.16,213.14,2.3464]
[1736109616021,7.43766,213.15,213.14,2.3464]
[1736109616221,7.43766,213.15,213.13,2.3465]
[1736109621121,2.62,213.16,213.14,2.3464]
[1736109621521,2.62,213.16,213.09,124.92961611]
[1736109621719,7.43766,213.21,213.17,2.3461]
[1736109621921,2.62,213.2,213.17,2.3461]
[1736109622418,7.43766,213.21,213.18,2.346]
[1736109622619,2.62,213.2,213.18,2.346]
[1736109624819,7.43766,213.19,213.16,2.3461]
[1736109627224,4.9658,213.2,213.16,2.3461]
[1736109627225,7.43766,213.17,213.16,2.3461]
[1736109627524,7.43766,213.17,213.09,124.92961611]
[1736109628124,7.43766,213.15,213.09,124.92961611]
[1736109628326,2.62,213.14,213.09,124.92961611]
[1736109628825,2.62,213.14,213.12,2.3465]
[1736109629921,2.62,213.14,213.09,124.92961611]
[1736109630122,2.62,213.14,213.13,2.3465]
[1736109633226,2.62,213.17,213.09,117.49195611]
[1736109633435,2.62,213.17,213.15,2.3462]
[1736109634226,10.05766,213.17,213.15,2.3462]
[1736109635626,10.05766,213.17,213.09,1.4337]
[1736109635627,2.62,213.17,213.16,2.3462]
[1736109637429,7.43766,213.19,213.17,2.3461]
[1736109637625,2.62,213.18,213.17,2.3461]
[1736109640637,2.62,213.18,213.16,2.3462]
[1736109642039,2.62,213.18,213.17,2.3461]
[1736109645139,2.62,213.18,213.12,7.43766]
[1736109645338,2.62,213.18,213.16,2.3462]
[1736109645638,2.62,213.18,213.12,7.43766]
[1736109646138,67.83877936,213.23,213.16,7.43766]
[1736109646341,2.62,213.22,213.16,7.43766]
[1736109648542,2.62,213.22,213.19,2.3458]
[1736109649340,2.62,213.22,213.2,2.3457]
[1736109652346,2.62,213.22,213.21,2.3456]
[1736109652546,63.02111936,213.23,213.18,7.43766]
[1736109653553,63.02111936,213.23,213.22,2.3455]
[1736109656752,60.40111936,213.23,213.22,2.3455]
[1736109660952,67.83877936,213.23,213.22,2.3455]
[1736109661152,67.83877936,213.23,213.2,2.3457]
[1736109661349,7.43766,213.21,213.2,2.3457]
[1736109663458,7.43766,213.21,213.11,116.05485267]
[1736109663651,2.3456,213.22,213.18,2.3459]
[1736109663652,7.43766,213.19,213.18,2.3459]
[1736109663950,10.05766,213.19,213.18,2.3459]
[1736109664150,10.05766,213.19,213.12,7.43766]
[1736109665547,10.05766,213.19,213.17,2.3461]
[1736109668252,10.05766,213.19,213.11,116.05485267]
[1736109668454,10.05766,213.19,213.16,2.3462]
[1736109669162,2.62,213.19,213.16,2.3462]
[1736109669362,7.43766,213.18,213.16,2.3462]
[1736109677267,7.43766,213.18,213.14,2.3463]
[1736109677462,7.43766,213.16,213.14,2.3463]
[1736109677664,7.43766,213.16,213.11,116.05485267]
[1736109678974,7.43766,213.16,213.13,2.3464]
[1736109681474,7.43766,213.16,213.11,116.05485267]
[1736109681671,7.43766,213.16,213.14,2.3464]
[1736109682371,7.43766,213.16,213.12,2.3465]
[1736109682568,7.43766,213.14,213.11,116.05485267]
[1736109682776,2.62,213.13,213.06,7.43766]
[1736109682975,2.62,213.13,213.1,2.3468]
[1736109684876,7.43766,213.12,213.1,2.3468]
[1736109685776,7.43766,213.12,213.09,2.3469]
[1736109687174,7.43766,213.12,213.07,2.3471]
[1736109687374,7.43766,213.12,213.06,116.07808314]
[1736109687779,7.43766,213.12,213.09,2.3469]
[1736109688269,7.43766,213.12,213.1,2.3468]
[1736109690681,7.43766,213.12,213.09,2.3469]
[1736109694183,7.43766,213.12,213.1,2.3468]
[1736109698073,60.40111936,213.23,213.07,7.43766]
[1736109698273,7.43766,213.14,213.12,2.3466]
[1736109698480,2.62,213.13,213.12,2.3466]
[1736109698878,7.43766,213.14,213.12,2.3466]
[1736109699177,2.62,213.13,213.12,2.3466]
[1736109702386,2.62,213.14,213.11,7.43766]
[1736109702577,7.43766,213.18,213.11,7.43766]
[1736109702777,2.62,213.17,213.11,7.43766]
[1736109702985,2.62,213.17,213.16,2.3462]
[1736109704389,2.62,213.17,213.09,2.3469]
[1736109704591,7.43766,213.16,213.09,7.43766]
[1736109705088,2.62,213.17,213.09,7.43766]
[1736109705287,2.62,213.17,213.11,7.43766]
[1736109706492,2.62,213.17,213.16,2.3462]
[1736109708983,60.40111936,213.23,213.13,7.43766]
[1736109709184,7.43766,213.22,213.2,2.3457]
[1736109709385,10.05766,213.22,213.2,2.3457]
[1736109709989,2.62,213.22,213.17,7.43766]
[1736109710188,2.62,213.22,213.21,2.3456]
[1736109710383,60.40111936,213.23,213.21,2.3456]
[1736109710686,2.62,213.22,213.21,2.3456]
[1736109711898,60.40111936,213.23,213.21,2.3456]
[1736109712096,2.62,213.22,213.21,2.3456]
[1736109712995,2.62,213.22,213.19,2.3458]
[1736109713200,10.05766,213.22,213.19,2.3458]
[1736109713596,10.05766,213.22,213.2,2.3457]
[1736109720303,10.05766,213.22,213.19,2.3458]
[1736109721005,12.40316,213.22,213.17,2.346]
[1736109721404,7.43766,213.2,213.12,7.43766]
[1736109722603,7.43766,213.2,213.16,2.3462]
[1736109729506,7.43766,213.2,213.12,7.43766]
[1736109729710,7.43766,213.2,213.17,2.3461]
[1736109731408,2.62,213.19,213.17,2.3461]
[1736109736912,7.43766,213.18,213.11,2.8833]
[1736109737214,7.43766,213.18,213.15,2.3462]
[1736109744233,7.43766,213.16,213.13,2.3464]
[1736109748836,7.43766,213.16,213.14,2.3464]
[1736109749833,2.3461,213.18,213.14,2.3464]
[1736109750033,10.05766,213.19,213.11,7.43766]
[1736109750932,10.05766,213.19,213.17,2.346]
[1736109754834,10.05766,213.19,213.11,7.43766]
[1736109754835,10.05766,213.19,213.16,2.3461]
[1736109755038,7.43766,213.19,213.16,2.3461]
[1736109755340,2.62,213.18,213.16,2.3461]
[1736109758640,7.43766,213.17,213.16,2.3461]
[1736109760541,2.62,213.18,213.16,2.3461]
[1736109765036,7.43766,213.17,213.16,2.3461]
[1736109765440,2.62,213.18,213.16,2.3461]
[1736109768047,12.40376,213.17,213.12,2.3466]
[1736109768249,2.62,213.16,213.1,117.4814762]
[1736109768846,2.62,213.16,213.14,2.3464]
[1736109769549,4.9662,213.16,213.1,117.4814762]
[1736109770446,4.9662,213.16,213.12,2.3466]
[1736109770841,7.43766,213.15,213.12,2.3466]
[1736109772652,2.62,213.16,213.14,2.3464]
[1736109781651,10.05766,213.16,213.14,2.3464]
[1736109783752,10.05766,213.16,213.11,2.3466]
[1736109783950,7.43766,213.12,213.1,116.0495762]
[1736109784254,2.62,213.11,213.1,116.0495762]
[1736109784962,2.62,213.11,213.07,26.02500684]
[1736109785159,2.62,213.11,213.05,10.34276]
[1736109785160,2.62,213.11,213.05,16.84901171]
[1736109785959,2.62,213.11,213.09,2.3469]